bitfinex-derivatives/quotes_SOLF0:USTF0_20260203
["timestamp","ask_amount","ask_price","bid_price","bid_amount"]
[1770083282391,14.7509971,104.08,104.03,3.73645752]
[1770083282996,6.0955971,104.08,104.03,12.39585752]
[1770083283195,3.72894249,104.08,104.03,12.39585752]
[1770083283397,362.7755971,104.1,104.03,3.73645752]
[1770083283598,6.0955971,104.12,104.06,3.73645752]
[1770083284593,6.0955971,104.11,104.04,3.73645752]
[1770083284993,3.72894249,104.11,104.05,3.73645752]
[1770083285300,3.72894249,104.11,104.06,8.657]
[1770083285493,6.0955971,104.11,104.06,8.657]
[1770083285797,14.7485971,104.11,104.05,3.73645752]
[1770083286094,6.0955971,104.1,104.05,3.73645752]
[1770083286498,3.72894249,104.1,104.05,3.73645752]
[1770083286799,3.72894249,104.1,104.05,12.39415752]
[1770083287893,3.72894249,104.12,104.07,3.73645752]
[1770083288997,134.5632,104.14,104.08,3.73645752]
[1770083288998,12.38004249,104.14,104.08,3.73645752]
[1770083290401,12.38004249,104.14,104.08,12.39155752]
[1770083290798,3.72894249,104.14,104.09,3.73645752]
[1770083291191,12.37944249,104.14,104.09,3.73645752]
[1770083291399,3.72894249,104.13,104.07,3.73645752]
[1770083292101,3.72894249,104.11,104.05,3.73645752]
[1770083292798,12.38204249,104.11,104.05,12.39425752]
[1770083293702,3.72894249,104.1,104.05,12.39425752]
[1770083294598,3.72894249,104.1,104.03,3.73645752]
[1770083296102,3.72894249,104.08,104.01,3.73645752]
[1770083296297,356.94,104.08,104.01,3.73645752]
[1770083296497,3.72894249,104.07,104.01,3.73645752]
[1770083297403,12.38514249,104.07,104.01,12.39745752]
[1770083298498,12.38604249,104.06,104.01,3.73645752]
[1770083298705,3.72894249,104.05,104.0,8.662]
[1770083302502,358.14,104.06,104.01,3.63338972]
[1770083302706,3.47975037,104.07,104.01,3.63338972]
[1770083302908,12.13615037,104.07,104.01,3.63338972]
[1770083304405,12.13615037,104.07,104.01,12.29448972]
[1770083305004,8.6571,104.06,104.01,3.63338972]
[1770083305208,3.47975037,104.05,103.99,3.63338972]
[1770083305902,3.47975037,104.03,103.96,3.63338972]
[1770083307307,12.13935037,104.03,103.97,8.6645]
[1770083307801,3.47975037,104.03,103.97,8.6645]
[1770083308000,3.47975037,104.02,103.96,3.63338972]
[1770083308708,3.47975037,104.02,103.96,12.29868972]
[1770083309107,12.14015037,104.02,103.96,3.63338972]
[1770083309705,3.47975037,104.01,103.96,3.63338972]
[1770083310010,3.47975037,104.01,103.95,8.6654]
[1770083310510,3.47975037,104.01,103.96,12.29868972]
[1770083310709,365.11975037,104.03,103.96,12.29868972]
[1770083311108,365.11975037,104.03,103.94,134.817]
[1770083311109,365.11975037,104.03,103.97,12.29788972]
[1770083311412,3.47975037,104.03,103.98,3.63338972]
[1770083311602,3.47975037,104.05,103.98,12.29698972]
[1770083311909,366.59975037,104.05,103.98,12.29698972]
[1770083312301,366.73975037,104.05,103.98,12.29698972]
[1770083313400,8.6588,104.04,103.98,12.29698972]
[1770083313605,366.73975037,104.05,103.99,12.29608972]
[1770083313812,366.73975037,104.05,103.97,134.7813]
[1770083313813,363.26,104.05,104.0,3.63338972]
[1770083314210,3.47975037,104.06,104.0,3.63338972]
[1770083314411,367.93975037,104.06,104.0,3.63338972]
[1770083315012,376.59685037,104.06,104.0,12.29518972]
[1770083315410,12.13785037,104.05,104.0,12.29518972]
[1770083315714,3.47975037,104.05,103.99,8.6627]
[1770083316404,3.47975037,104.03,103.96,3.63338972]
[1770083317211,3.47975037,104.02,103.94,3.63338972]
[1770083317403,3.47975037,104.01,103.94,3.63338972]
[1770083318013,12.14165037,104.01,103.95,8.6661]
[1770083319010,12.14175037,104.0,103.94,3.63338972]
[1770083319610,3.47975037,104.0,103.94,3.63338972]
[1770083320112,8.6613,104.01,103.94,3.63338972]
[1770083320513,8.6613,104.01,103.95,3.63338972]
[1770083320718,12.14025037,104.02,103.95,3.63338972]
[1770083321113,12.14025037,104.02,103.96,8.6652]
[1770083321315,12.14105037,104.01,103.96,8.6652]
[1770083321515,8.6613,104.01,103.97,3.63338972]
[1770083322218,12.14105037,104.01,103.96,8.6652]
[1770083324516,3.47975037,104.01,103.96,8.6652]
[1770083330521,5.84818805,104.01,103.96,8.6652]
[1770083330921,5.84818805,104.01,103.96,12.45357757]
[1770083331716,3.49215876,104.03,103.97,3.78837757]
[1770083332620,5.86059644,104.02,103.96,3.78837757]
[1770083333617,14.52099644,104.02,103.97,12.45277757]
[1770083335624,11.02963768,104.01,103.97,3.78837757]
[1770083337325,11.02963768,104.01,103.96,8.6652]
[1770083337524,14.52259644,104.0,103.95,12.45447757]
[1770083337726,2.36843768,103.99,103.93,3.78837757]
[1770083339320,2.36843768,103.99,103.94,8.6668]
[1770083339624,2.36843768,103.99,103.94,12.45517757]
[1770083340219,2.36843768,103.98,103.94,12.45517757]
[1770083340623,5.86059644,103.97,103.92,3.78837757]
[1770083340827,2.36843768,103.95,103.9,3.78837757]
[1770083341126,2.36843768,103.95,103.9,12.45847757]
[1770083341729,3.49215876,103.96,103.91,12.45787757]
[1770083342026,5.86059644,103.97,103.91,3.78837757]
[1770083342228,2.36843768,103.96,103.91,12.45787757]
[1770083342428,2.36843768,103.95,103.91,12.45787757]
[1770083342625,2.36843768,103.95,103.91,3.78837757]
[1770083345829,14.52599644,103.96,103.91,3.78837757]
[1770083346830,2.36843768,103.95,103.91,3.78837757]
[1770083347533,11.03303768,103.97,103.92,3.78837757]
[1770083347731,372.19215876,103.98,103.92,3.78837757]
[1770083347732,5.86059644,103.98,103.92,3.78837757]
[1770083349229,2.36843768,103.97,103.92,12.45697757]
[1770083349430,5.86059644,103.97,103.92,12.45697757]
[1770083349828,14.52509644,103.97,103.92,12.45697757]
[1770083350032,2.36843768,103.96,103.92,3.78837757]
[1770083350937,2.36843768,103.98,103.92,3.78837757]
[1770083351127,134.7321,104.01,103.92,3.78837757]
[1770083351128,2.36843768,104.0,103.93,3.78837757]
[1770083351837,5.86059644,104.01,103.95,3.78837757]
[1770083352435,14.52199644,104.01,103.96,8.6653]
[1770083352638,5.86059644,104.01,103.95,3.78837757]
[1770083352935,5.86059644,103.98,103.92,3.78837757]
[1770083353636,5.86059644,103.98,103.93,8.6678]
[1770083354135,5.86059644,103.98,103.93,12.45617757]
[1770083354336,14.52419644,103.99,103.93,12.45617757]
[1770083354739,2.36843768,103.98,103.93,12.45617757]
[1770083355336,2.36843768,103.97,103.93,3.78837757]
[1770083355734,5.86059644,103.98,103.93,3.78837757]
[1770083355931,5.86059644,103.98,103.93,12.45557757]
[1770083356834,384.70329644,104.0,103.94,12.45537757]
[1770083357437,14.52329644,104.0,103.94,12.45537757]
[1770083359139,5.86059644,103.98,103.93,8.6677]
[1770083359643,5.86059644,103.98,103.93,12.45607757]
[1770083360941,3.49215876,103.98,103.93,12.45607757]
[1770083361547,5.86059644,103.98,103.93,12.45607757]
[1770083362346,3.46227444,103.97,103.91,3.47044812]
[1770083362548,5.83071212,103.96,103.91,3.47044812]
[1770083362843,14.49671212,103.96,103.91,12.13974812]
[1770083363044,5.83071212,103.95,103.89,3.47044812]
[1770083363850,14.49771212,103.95,103.89,3.47044812]
[1770083365049,12.12927444,103.95,103.9,12.14074812]
[1770083366952,3.46227444,103.95,103.9,12.14074812]
[1770083368351,14.49949178,103.95,103.9,12.14074812]
[1770083369653,12.12947444,103.94,103.89,8.671]
[1770083371854,14.50039178,103.94,103.89,8.671]
[1770083372655,14.49949178,103.95,103.9,12.14064812]
[1770083373252,12.12857444,103.95,103.9,12.14064812]
[1770083373452,3.46227444,103.95,103.91,8.6694]
[1770083373753,5.83319178,103.97,103.91,12.13984812]
[1770083375059,14.49839178,103.97,103.91,12.13984812]
[1770083375756,2.37091734,103.96,103.91,12.13984812]
[1770083375958,14.49839178,103.97,103.92,12.13904812]
[1770083376259,14.49709178,103.98,103.93,3.47044812]
[1770083376860,3.46227444,103.98,103.93,12.13754812]
[1770083377861,3.46227444,104.0,103.95,3.47044812]
[1770083379362,3.46227444,104.0,103.95,12.13594812]
[1770083380462,14.49549178,104.0,103.95,3.47044812]
[1770083380659,3.46227444,103.99,103.94,8.6669]
[1770083381060,3.46227444,103.99,103.94,12.13734812]
[1770083383860,14.49629178,103.99,103.93,8.6677]
[1770083384069,2.37091734,103.97,103.92,3.47044812]
[1770083386173,3.46227444,103.98,103.92,3.47044812]
[1770083386174,12.12597444,103.98,103.93,3.47044812]
[1770083387269,14.49689178,103.98,103.93,3.47044812]
[1770083390869,3.52224834,103.96,103.91,3.54189417]
[1770083391070,2.37091734,103.95,103.89,3.54189417]
[1770083392077,5.89316568,103.96,103.89,3.54189417]
[1770083392272,14.55876568,103.96,103.9,8.6703]
[1770083396080,14.55876568,103.96,103.9,12.21219417]
[1770083396582,12.18784834,103.96,103.9,12.21219417]
[1770083397185,3.52224834,103.96,103.91,12.21129417]
[1770083397585,8.6646,103.97,103.92,3.54189417]
[1770083397785,14.55686568,103.98,103.92,12.21049417]
[1770083399378,14.55376568,104.02,103.96,12.20679417]
[1770083399581,3.52224834,104.02,103.97,3.54189417]
[1770083399781,3.52224834,104.03,103.97,3.54189417]
[1770083400378,5.89316568,104.05,103.99,3.54189417]
[1770083400687,3.52224834,104.05,103.99,3.54189417]
[1770083400989,5.89316568,104.02,103.96,3.54189417]
[1770083401590,3.52224834,104.01,103.96,12.20659417]
[1770083401789,5.89316568,104.01,103.96,12.20659417]
[1770083403490,5.89316568,104.0,103.94,12.20809417]
[1770083404384,5.89316568,104.0,103.95,8.6659]
[1770083404588,3.52224834,104.0,103.95,12.20779417]
[1770083406393,5.89316568,104.02,103.97,3.54189417]
[1770083406587,3.52224834,104.02,103.97,3.54189417]
[1770083407093,3.52224834,104.01,103.95,3.54189417]
[1770083407288,5.89316568,104.01,103.95,12.20729417]
[1770083407488,5.89316568,104.01,103.95,3.54189417]
[1770083407688,3.52224834,104.01,103.96,3.54189417]
[1770083408491,3.52224834,104.01,103.96,12.20689417]
[1770083410590,5.89316568,104.0,103.95,8.6661]
[1770083411600,5.89316568,104.02,103.96,12.20699417]
[1770083411985,5.89316568,104.02,103.97,3.54189417]
[1770083412189,374.0401,104.03,103.97,3.54189417]
[1770083412190,11.03101734,104.03,103.97,3.54189417]
[1770083412393,14.55326568,104.03,103.97,3.54189417]
[1770083412793,3.52224834,104.02,103.97,3.54189417]
[1770083413394,5.89316568,104.02,103.97,12.20619417]
[1770083414086,14.55366568,104.02,103.97,3.54189417]
[1770083415286,5.89316568,104.04,103.98,3.54189417]
[1770083416292,14.55196568,104.04,103.98,12.20549417]
[1770083416793,2.37091734,104.03,103.98,12.20549417]
[1770083417392,2.37091734,104.03,103.96,2.37091734]
[1770083417393,5.89316568,104.02,103.97,8.6644]
[1770083417595,3.52224834,104.01,103.97,8.6644]
[1770083419396,11.03131734,104.02,103.97,12.20629417]
[1770083419596,14.55286568,104.03,103.97,12.20629417]
[1770083421800,14.55364882,104.02,103.97,12.20629417]
[1770083423500,11.03141734,104.02,103.97,12.20629417]
[1770083424501,14.55364882,104.02,103.96,12.15763159]
[1770083425202,14.55364882,104.02,103.94,137.19051734]
[1770083425203,5.89314882,104.0,103.95,8.6661]
[1770083425701,5.89314882,104.0,103.95,12.15853159]
[1770083426601,5.89314882,104.0,103.96,8.6653]
[1770083427207,5.89314882,103.99,103.94,8.6663]
[1770083428302,5.89314882,103.98,103.93,3.49243159]
[1770083428497,5.89221322,103.97,103.92,8.6681]
[1770083428703,5.89221322,103.96,103.91,3.49243159]
[1770083429204,3.52223148,103.96,103.91,12.16123159]
[1770083429504,2.36998174,103.97,103.91,3.49243159]
[1770083430308,2.36998174,103.97,103.93,8.6678]
[1770083435307,164.16223148,104.0,103.95,3.49243159]
[1770083435609,2.36998174,103.98,103.93,3.49243159]
[1770083436311,2.36998174,103.98,103.94,8.6667]
[1770083437605,2.36998174,103.98,103.94,3.49243159]
[1770083437802,2.36998174,103.98,103.91,137.22788174]
[1770083437803,11.03208174,104.0,103.95,12.15843159]
[1770083439012,11.03308174,103.99,103.95,3.49243159]
[1770083439907,2.36998174,103.99,103.95,3.49243159]
[1770083440311,2.36998174,103.97,103.93,3.49243159]
[1770083442418,11.03288174,103.99,103.93,3.49243159]
[1770083442921,14.55511322,103.99,103.93,3.49243159]
[1770083443317,5.89221322,103.99,103.94,12.15873159]
[1770083443522,14.55411322,104.01,103.94,3.49243159]
[1770083443720,2.36998174,103.98,103.94,3.49243159]
[1770083444023,2.36998174,103.98,103.94,12.15923159]
[1770083444219,2.36998174,103.98,103.94,3.49243159]
[1770083446025,14.55571322,103.99,103.94,3.49243159]
[1770083446225,2.36998174,103.98,103.94,3.49243159]
[1770083446419,2.36998174,103.98,103.93,8.6678]
[1770083446924,2.36998174,103.98,103.93,12.16023159]
[1770083448424,11.03398174,103.98,103.93,12.16023159]
[1770083448629,5.89221322,103.97,103.91,3.49243159]
[1770083449530,5.89221322,103.95,103.9,12.16233159]
[1770083450931,3.52223148,103.95,103.9,12.16233159]
[1770083453132,5.89221322,103.95,103.9,12.16233159]
[1770083453826,3.52223148,103.95,103.91,8.6694]
[1770083461336,11.03568174,103.96,103.91,12.22211038]
[1770083461538,2.36998174,103.98,103.93,3.55271038]
[1770083461835,5.98507146,103.98,103.93,3.55271038]
[1770083463335,2.36998174,103.98,103.94,3.55271038]
[1770083463733,2.36998174,103.98,103.92,137.21608174]
[1770083463938,5.98507146,104.02,103.95,3.55271038]
[1770083464538,3.61508972,104.04,103.98,3.55271038]
[1770083464843,5.98507146,104.06,103.99,3.55271038]
[1770083465139,11.02878174,104.04,103.99,3.55271038]
[1770083465637,5.98507146,104.03,103.97,3.55271038]
[1770083465842,5.98507146,104.02,103.97,3.55271038]
[1770083466944,14.64547146,104.02,103.97,3.55271038]
[1770083467341,5.98507146,104.01,103.95,3.55271038]
[1770083467541,2.36998174,104.0,103.95,3.55271038]
[1770083467843,2.36998174,104.0,103.96,8.6652]
[1770083468945,11.03038174,104.02,103.96,12.21791038]
[1770083469440,2.36998174,104.02,103.98,3.55271038]
[1770083469745,3.61508972,104.03,103.98,3.55271038]
[1770083469944,5.98507146,104.03,103.98,3.55271038]
[1770083470143,2.36998174,104.02,103.98,3.55271038]
[1770083470945,2.36998174,104.04,103.98,3.55271038]
[1770083471146,5.98507146,104.05,103.98,3.55271038]
[1770083472246,14.64367146,104.05,103.99,12.21551038]
[1770083476150,12.27198972,104.07,104.0,3.55271038]
[1770083476449,14.64197146,104.07,104.01,3.55271038]
[1770083476650,2.36998174,104.08,104.02,3.55271038]
[1770083476845,5.98507146,104.09,104.03,3.55271038]
[1770083477042,134.6115,104.11,104.03,3.55271038]
[1770083477043,5.98507146,104.11,104.04,3.55271038]
[1770083477443,5.98507146,104.11,104.05,8.6579]
[1770083477651,5.98507146,104.11,104.05,12.21061038]
[1770083478549,3.61508972,104.11,104.05,12.21061038]
[1770083480550,11.02268174,104.12,104.06,12.1454056]
[1770083480852,8.6527,104.12,104.07,3.4886056]
[1770083481653,5.8599198,104.13,104.08,3.4886056]
[1770083482252,3.48993806,104.15,104.08,3.4886056]
[1770083482444,2.36998174,104.12,104.06,3.4886056]
[1770083483453,2.36998174,104.12,104.07,8.656]
[1770083483754,14.5111198,104.13,104.07,8.656]
[1770083484357,2.36998174,104.14,104.08,12.1439056]
[1770083484552,14.5102198,104.15,104.09,3.4886056]
[1770083484749,292.5799198,104.17,104.1,3.4886056]
[1770083484949,5.8599198,104.19,104.12,3.4886056]
[1770083485155,5.8599198,104.19,104.12,5.85858734]
[1770083485350,5.8599198,104.19,104.13,3.4886056]
[1770083485550,5.8599198,104.21,104.14,3.4886056]
[1770083485747,2.36998174,104.2,104.14,3.4886056]
[1770083485952,5.8599198,104.21,104.14,3.4886056]
[1770083486248,2.36998174,104.22,104.16,3.4886056]
[1770083487258,5.8599198,104.22,104.16,3.4886056]
[1770083487854,2.36998174,104.21,104.16,3.4886056]
[1770083488357,3.48993806,104.22,104.16,3.4886056]
[1770083489259,3.48993806,104.21,104.14,12.1382056]
[1770083489451,3.48993806,104.19,104.12,189.8199056]
[1770083489656,3.48993806,104.19,104.12,181.1686056]
[1770083490048,3.48993806,104.19,104.13,3.4886056]
[1770083491357,3.48993806,104.18,104.12,8.652]
[1770083491555,3.48993806,104.2,104.13,3.4886056]
[1770083491755,12.13613806,104.2,104.13,12.1397056]
[1770083491956,12.13613806,104.2,104.14,3.4886056]
[1770083493259,8.6463,104.19,104.14,3.4886056]
[1770083493560,3.48993806,104.18,104.12,12.1398056]
[1770083494148,3.48993806,104.18,104.13,8.651]
[1770083494351,3.48993806,104.18,104.13,12.1396056]
[1770083495456,3.48993806,104.18,104.13,3.4886056]
[1770083496056,3.48993806,104.18,104.13,12.1398056]
[1770083496456,365.9252,104.21,104.15,8.6492]
[1770083496660,365.9252,104.21,104.15,12.1378056]
[1770083496861,357.28,104.21,104.16,3.4886056]
[1770083497059,3.48993806,104.22,104.16,3.4886056]
[1770083498359,12.13363806,104.22,104.16,3.4886056]
[1770083499866,12.13363806,104.22,104.16,12.1372056]
[1770083500363,8.6447,104.21,104.16,3.4886056]
[1770083501158,12.13463806,104.21,104.15,8.6495]
[1770083501359,12.13633806,104.19,104.12,3.4886056]
[1770083502355,12.13633806,104.19,104.11,134.5987]
[1770083502356,12.13633806,104.19,104.13,12.1398056]
[1770083505666,8.6472,104.18,104.13,3.4886056]
[1770083505963,8.6472,104.18,104.12,8.652]
[1770083505964,12.13713806,104.18,104.12,8.652]
[1770083506369,12.13713806,104.18,104.12,12.1406056]
[1770083506570,3.48993806,104.18,104.13,8.6509]
[1770083507167,12.13713806,104.18,104.13,8.6509]
[1770083508073,12.13713806,104.18,104.12,12.1405056]
[1770083508772,3.48993806,104.18,104.13,12.1397056]
[1770083510175,12.13713806,104.18,104.13,12.1397056]
[1770083510471,360.51156591,104.2,104.15,3.53307649]
[1770083510770,3.71156591,104.2,104.15,3.53307649]
[1770083510973,361.55156591,104.22,104.15,12.18257649]
[1770083511276,3.71156591,104.22,104.15,12.18257649]
[1770083511675,3.71156591,104.22,104.16,12.18107649]
[1770083512178,12.35546591,104.22,104.16,12.18107649]
[1770083513377,3.71156591,104.21,104.15,8.6495]
[1770083515268,8.6454,104.2,104.15,8.6495]
[1770083515678,3.71156591,104.19,104.14,12.18337649]
[1770083516177,8.6454,104.2,104.14,12.18337649]
[1770083516378,8.6442,104.22,104.17,3.53307649]
[1770083516878,8.6442,104.22,104.17,12.18087649]
[1770083520580,12.35466591,104.23,104.17,12.18087649]
[1770083522580,12.35466591,104.23,104.18,8.647]
[1770083522983,358.72,104.24,104.19,3.53307649]
[1770083523287,3.71156591,104.27,104.2,3.53307649]
[1770083523681,3.71156591,104.3,104.23,3.53307649]
[1770083524082,12.35106591,104.28,104.21,3.53307649]
[1770083524682,3.71156591,104.27,104.21,3.53307649]
[1770083524888,3.71156591,104.27,104.18,3.53307649]
[1770083525282,8.6406,104.26,104.2,12.17837649]
[1770083525485,3.71156591,104.27,104.2,3.53307649]
[1770083526675,360.54,104.28,104.21,3.53307649]
[1770083526876,12.34956591,104.29,104.23,3.53307649]
[1770083527279,3.71156591,104.28,104.2,3.53307649]
[1770083527785,12.35036591,104.28,104.21,3.53307649]
[1770083528586,8.6396,104.27,104.21,3.53307649]
[1770083529489,12.35116591,104.27,104.21,12.17727649]
[1770083530486,2.35751747,104.25,104.21,12.17727649]
[1770083530687,2.35751747,104.26,104.21,12.17727649]
[1770083531385,14.70988338,104.26,104.19,12.17867649]
[1770083531683,2.35751747,104.24,104.19,3.53307649]
[1770083531986,6.06908338,104.25,104.19,3.53307649]
[1770083532387,3.71156591,104.25,104.19,3.53307649]
[1770083532583,8.6408,104.26,104.21,12.17757649]
[1770083532889,12.35126591,104.27,104.21,12.17757649]
[1770083533484,6.31508405,104.28,104.18,134.5065]
[1770083533485,368.28249785,104.29,104.22,12.17657649]
[1770083533690,364.59156591,104.29,104.22,12.17657649]
[1770083533890,3.71156591,104.28,104.22,12.17657649]
[1770083534185,3.71156591,104.27,104.2,8.6448]
[1770083534390,3.71156591,104.27,104.2,12.17787649]
[1770083534583,3.77236782,104.26,104.2,12.17787649]
[1770083535191,3.77236782,104.26,104.19,8.6461]
[1770083535491,3.77236782,104.26,104.18,3.53307649]
[1770083535790,3.71156591,104.25,104.18,3.53307649]
[1770083535989,8.6421,104.24,104.18,12.17937649]
[1770083536183,3.71156591,104.24,104.16,3.53307649]
[1770083536582,3.71156591,104.23,104.16,3.53307649]
[1770083536786,3.71156591,104.22,104.13,3.53307649]
[1770083538093,3.71156591,104.22,104.15,3.53307649]
[1770083539294,8.6454,104.2,104.15,3.53307649]
[1770083540395,3.71156591,104.21,104.16,3.613603]
[1770083541892,8.6443,104.22,104.16,3.613603]
[1770083542194,8.6443,104.22,104.16,12.262103]
[1770083542385,12.08899838,104.22,104.16,12.262103]
[1770083543389,12.08939838,104.21,104.15,8.6494]
[1770083543590,3.44469838,104.21,104.14,3.613603]
[1770083544397,8.6455,104.2,104.14,12.263903]
[1770083544696,12.09019838,104.2,104.14,12.263903]
[1770083548491,374.54929838,104.22,104.15,12.262503]
[1770083548696,374.54929838,104.22,104.15,3.613603]
[1770083549097,374.54929838,104.22,104.13,134.5733]
[1770083549098,12.08929838,104.22,104.17,3.613603]
[1770083549498,8.6446,104.22,104.17,3.613603]
[1770083550394,8.6446,104.22,104.17,12.261503]
[1770083550792,12.08929838,104.22,104.17,3.613603]
[1770083551502,3.44469838,104.22,104.17,12.261203]
[1770083552298,3.44469838,104.22,104.17,3.613603]
[1770083552500,3.44469838,104.2,104.14,3.613603]
[1770083553104,12.09049838,104.2,104.14,12.263303]
[1770083553304,12.09049838,104.2,104.11,3.613603]
[1770083553305,3.44469838,104.2,104.11,3.613603]
[1770083553802,12.09159838,104.19,104.13,8.651]
[1770083554194,12.09189838,104.18,104.12,12.265603]
[1770083554601,3.44469838,104.18,104.12,3.613603]
[1770083556404,8.6482,104.17,104.12,3.613603]
[1770083556602,12.09289838,104.17,104.12,3.613603]
[1770083557001,12.09289838,104.17,104.11,8.6526]
[1770083557002,8.6488,104.16,104.1,8.6536]
[1770083557202,8.6488,104.16,104.1,12.267203]
[1770083559403,8.6499,104.15,104.1,3.613603]
[1770083559706,12.09459838,104.15,104.1,3.613603]
[1770083560808,3.44469838,104.13,104.06,3.613603]
[1770083561705,376.17509838,104.15,104.09,3.613603]
[1770083562406,12.09509838,104.15,104.09,3.613603]
[1770083564406,2.36249926,104.14,104.09,3.613603]
[1770083564611,2.36249926,104.13,104.09,3.613603]
[1770083566911,2.36249926,104.13,104.09,12.267903]
[1770083567703,367.64469838,104.17,104.1,3.613603]
[1770083567909,2.36249926,104.15,104.1,12.267303]
[1770083569412,2.36249926,104.15,104.11,3.613603]
[1770083571014,2.36249926,104.17,104.12,3.62851509]
[1770083571213,6.06503361,104.17,104.12,3.62851509]
[1770083572109,14.71313361,104.17,104.12,3.62851509]
[1770083573713,8.6472,104.18,104.13,3.62851509]
[1770083573912,2.36249926,104.17,104.13,3.62851509]
[1770083575116,2.36249926,104.16,104.11,12.28131509]
[1770083575618,2.36249926,104.14,104.1,8.6537]
[1770083576616,2.36249926,104.14,104.1,12.28221509]
[1770083577021,2.36249926,104.15,104.11,12.28131509]
[1770083577322,2.36249926,104.16,104.11,12.28131509]
[1770083578714,2.36249926,104.16,104.09,136.98519926]
[1770083578715,6.06503361,104.17,104.12,12.28041509]
[1770083578916,2.36249926,104.18,104.12,12.28041509]
[1770083579113,6.06503361,104.18,104.12,12.28041509]
[1770083579523,14.71223361,104.18,104.12,12.28041509]
[1770083579825,6.06503361,104.21,104.15,3.62851509]
[1770083580023,2.36249926,104.2,104.15,3.62851509]
[1770083580216,11.00849926,104.2,104.15,3.62851509]
[1770083580421,2.36249926,104.22,104.16,3.62851509]
[1770083580725,6.06503361,104.23,104.17,3.62851509]
[1770083581417,2.36249926,104.22,104.17,3.62851509]
[1770083581623,3.70253435,104.23,104.17,3.62851509]
[1770083581624,2.36249926,104.21,104.17,3.62851509]
[1770083581826,2.36249926,104.2,104.14,3.62851509]
[1770083582215,2.36249926,104.2,104.15,8.6494]
[1770083582424,12.34733435,104.21,104.15,8.6494]
[1770083583425,194.16123993,104.23,104.14,3.62851509]
[1770083583426,12.34803435,104.2,104.14,12.27881509]
[1770083583725,3.70253435,104.2,104.14,3.62851509]
[1770083585525,3.70253435,104.2,104.12,3.62851509]
[1770083585925,3.70253435,104.2,104.13,8.6511]
[1770083585926,8.6464,104.19,104.13,8.6511]
[1770083586223,12.34893435,104.19,104.13,8.6511]
[1770083586421,12.34893435,104.19,104.13,12.27961509]
[1770083586627,12.34893435,104.19,104.14,8.6503]
[1770083587026,12.34893435,104.19,104.13,12.27951509]
[1770083587628,3.70253435,104.18,104.13,8.651]
[1770083591826,3.70253435,104.17,104.11,8.6524]
[1770083592529,3.70253435,104.17,104.11,12.28091509]
[1770083593430,12.35053435,104.17,104.11,12.28091509]
[1770083596533,3.70253435,104.17,104.12,12.28031509]
[1770083596738,3.70253435,104.19,104.13,3.62851509]
[1770083597234,8.6471,104.18,104.13,12.27971509]
[1770083597437,3.70253435,104.17,104.11,3.62851509]
[1770083598134,3.70253435,104.17,104.12,8.6519]
[1770083599834,12.35103435,104.17,104.11,3.62851509]
[1770083600340,12.35103435,104.17,104.12,8.6519]
[1770083601940,376.91576678,104.19,104.13,12.2899049]
[1770083602347,2.36079285,104.18,104.13,12.2899049]
[1770083603645,2.36079285,104.18,104.14,3.6389049]
[1770083604644,14.67655963,104.19,104.14,3.6389049]
[1770083604948,3.66876678,104.21,104.16,3.6389049]
[1770083605847,6.02955963,104.21,104.16,3.6389049]
[1770083606248,2.36079285,104.21,104.16,3.6389049]
[1770083606747,2.36079285,104.22,104.16,3.6389049]
[1770083607246,14.67345963,104.22,104.16,12.2874049]
[1770083607441,2.36079285,104.21,104.16,12.2874049]
[1770083608449,11.00539285,104.21,104.16,12.2874049]
[1770083609443,6.02955963,104.19,104.14,3.6389049]
[1770083609843,134.4509,104.23,104.17,3.6389049]
[1770083609844,8.644,104.22,104.17,3.6389049]
[1770083610046,14.67355963,104.22,104.17,3.6389049]
[1770083610749,12.31276678,104.22,104.17,3.6389049]
[1770083611452,12.31276678,104.22,104.17,12.2867049]
[1770083611846,14.67355963,104.22,104.16,12.2875049]
[1770083613549,14.67355963,104.22,104.17,3.6389049]
[1770083614252,14.67355963,104.22,104.16,8.6486]
[1770083614457,2.35930725,104.21,104.16,8.6486]
[1770083614647,2.35930725,104.21,104.16,12.2875049]
[1770083615253,6.02807403,104.21,104.16,12.2875049]
[1770083618157,11.00330725,104.22,104.17,8.6478]
[1770083618356,14.67207403,104.22,104.17,8.6478]
[1770083620062,373.92807403,104.24,104.18,12.2857049]
[1770083620356,3.66876678,104.24,104.18,3.6389049]
[1770083620961,14.67027403,104.24,104.18,3.6389049]
[1770083622355,14.67027403,104.24,104.18,12.2853049]
[1770083622765,3.66876678,104.24,104.19,12.2849049]
[1770083622966,11.00080725,104.25,104.2,3.6389049]
[1770083623156,374.10807403,104.26,104.2,3.6389049]
[1770083623457,6.02807403,104.26,104.2,3.6389049]
[1770083624066,14.66927403,104.26,104.2,12.2841049]
[1770083624564,2.35930725,104.25,104.2,12.2841049]
[1770083628059,14.66927403,104.26,104.21,3.6389049]
[1770083628263,14.66927403,104.26,104.21,12.2834049]
[1770083628866,14.66927403,104.26,104.21,3.6389049]